Cogmind - Beta 13 @@@ ROGUE MODE // 2024.03.23 @ 17:01:01 Player: 3.14 Result: Destroyed by G-47 Trooper with Particle Gun Performance ------------- Evolutions (0) 0 Regions Visited (2) 400 Robots Destroyed (13) 65 Value Destroyed (425) 425 Prototype IDs (0) 0 Alien Tech Used (0) 0 Bonus (0) 0 TOTAL SCORE: 890 Bonus ------- None Cogmind --------- Core Integrity 0/250 Matter 109/300 Energy 100/100 System Corruption 2% Temperature Cool (9) Movement Treading (160) Location -10/Mines Parts ------- > --- POWER (1) -------- (None) > --- PROPULSION (2) --- Light Treads Light Treads > --- UTILITY (2) ------ Large Storage Unit Transport Network Coupler > --- WEAPON (2) ------- Assault Rifle Light Cannon > --- INVENTORY (15) --- Light Ion Engine Aluminum Leg Combat Airjet Combat Airjet Heat Sink Light Armor Plating Light Armor Plating Hacking Suite Medium Laser Assault Rifle Grenade Launcher Grenade Launcher Peak State ------------ > --- POWER ------------ Light Ion Engine > --- PROPULSION ------- Light Treads Light Treads > --- UTILITY ---------- Large Storage Unit Transport Network Coupler > --- WEAPON ----------- Heavy Assault Rifle Light Cannon > --- INVENTORY -------- Light Ion Engine Light Treads Light Treads Light Treads Aluminum Leg Heat Sink Light Armor Plating Light Armor Plating Hacking Suite Medium Laser Assault Rifle Assault Rifle Grenade Launcher Grenade Launcher [Rating: 9] Favorites ----------- Power Light Ion Engine Engine Light Ion Engine Propulsion Light Treads Treads Light Treads Leg Aluminum Leg Utility Large Storage Unit Storage Large Storage Unit Processor Transport Network Coupler Weapon Assault Rifle Energy Gun Medium Laser Ballistic Gun Assault Rifle Ballistic Cannon Light Cannon Launcher Grenade Launcher Build | -11 -10 -10 ------- Run | Yrd Mat Min Slots Evolved . | . . . Power . | . . . Propulsion . | . . . Utility . | . . . Weapon . | . . . Parts Attached 20 | . 9 11 Power . | . . . Engine . | . . . Core . | . . . Reactor . | . . . Propulsion 7 | . 4 3 Treads 7 | . 4 3 Leg . | . . . Wheel . | . . . Hover . | . . . Flight . | . . . Utility 2 | . 2 . Device . | . . . Storage 1 | . 1 . Processor 1 | . 1 . Hackware . | . . . Protection . | . . . Artifact . | . . . Weapon 11 | . 3 8 Energy Gun . | . . . Energy Cannon . | . . . Ballistic Gun 5 | . 2 3 Ballistic Cannon 4 | . 1 3 Launcher 2 | . . 2 Special Weapon . | . . . Impact Weapon . | . . . Slashing Weapon . | . . . Piercing Weapon . | . . . Special Melee Weapon . | . . . Unidentified Prototypes . | . . . Parts Lost 7 | . . 7 Power 1 | . . 1 Propulsion 3 | . . 3 Utility . | . . . Weapon 3 | . . 3 Highest Loss Streak 6 | . . 6 To Critical Strikes . | . . . Average Slot Usage (%) 94 | . 98 86 Engine 9 | . 14 2 Treads 26 | . 25 27 Leg 1 | . 1 . Storage 19 | . 22 14 Processor 8 | . 5 14 Ballistic Gun 21 | . 24 14 Ballistic Cannon 4 | . 2 10 Naked Turns . | . . . Heaviest Build 33 | 12 33 27 Greatest Support 40 | 20 40 40 Greatest Overweight (x) 1 | . 1 1 Average Overweight (x) . | . . . Largest Inventory Capacity 15 | . 15 15 Average Capacity 14 | . 14 15 Most Carried 15 | . 13 15 Average Carried 10 | . 8 12 Final Capacity 15 | 8 15 15 Final Carried 13 | 6 13 12 Class Distribution -------------------- 100% | Mutant Dominant Class ---------------- Mutant | -10/Materials Mutant | -10/Mines Resources | -11 -10 -10 ----------- Run | Yrd Mat Min Matter Collected 718 | 169 399 150 Remotely . | . . . Salvage Created 595 | . 420 175 Parts 29 | . 19 10 Haulers Intercepted 2 | . 2 . Recyclers Shooed 1 | . 1 . Parts Field Recycled . | . . . Retrieved Matter . | . . . Parts Self-Destructed . | . . . Prevented . | . . . Kills | -11 -10 -10 ------- Run | Yrd Mat Min Combat Hostiles Destroyed 16 | . 5 11 Guns 9 | . 3 6 Cannons 3 | . 2 1 AOE 4 | . . 4 Classes Destroyed 7 | . 4 3 Hauler 2 | . 2 . Recycler 1 | . 1 . Operator 1 | . 1 . Grunt 5 | . 5 . Sentry 2 | . . 2 Demolisher 2 | . . 2 Assembled 7 | . . 7 Best Kill Streak 4 | . 2 4 Combat Bots Only 4 | . 2 4 Max Kills in Single Turn 1 | . 1 1 Gunslinging . | . . . Exploded 1 | . . 1 Melee . | . . . Uniques/NPCs Destroyed . | . . . Combat | -11 -10 -10 -------- Run | Yrd Mat Min Hostile Shots Fired 98 | . 32 66 Missed 26 | . 9 17 Damage Taken 1466 | . 272 1194 Core 262 | . 41 221 Absorbed by Shields . | . . . Regen/Repaired (Parts) 102 | . 102 . Core Remaining (%) 100 | 100 . . Volleys Fired 87 | . 51 36 Largest 2 | . 2 2 Hottest 70 | . 70 58 Shots Fired 169 | . 102 67 Gun 135 | . 100 35 Cannon 30 | . 2 28 Launcher 4 | . . 4 Special . | . . . Kinetic 160 | . 97 63 Thermal 5 | . 5 . Explosive 4 | . . 4 Electromagnetic . | . . . Robot Hit Streak 14 | . 14 5 Robot Miss Streak 6 | . 6 5 Penetration Max . | . . . Secondary Targets 2 | . 1 1 Max Gunslinging Chain 1 | . 1 1 Shots Hit Robots 100 | . 63 37 Core Hits 45 | . 19 26 Critical Kills . | . . . Critical Parts Destroyed . | . . . Critical Strikes . | . . . Melee Attacks . | . . . Impact . | . . . Slashing . | . . . Piercing . | . . . Sneak Attacks . | . . . Combat Hostiles . | . . . Follow-up Attacks . | . . . Damage Inflicted 1651 | . 825 826 Guns 1044 | . 780 264 Cannons 300 | . 37 263 Explosions 299 | . . 299 Melee . | . . . Ramming 8 | . 8 . Kinetic 1319 | . 792 527 Thermal 25 | . 25 . Explosive 299 | . . 299 Electromagnetic . | . . . Impact . | . . . Slashing . | . . . Piercing . | . . . Highest Corruption 2 | . 2 2 Average Corruption 2 | . 2 2 Corruption Purged . | . . . Corruption Blocked . | . . . Effects 2 | . . 2 Message Errors 1 | . . 1 Data Loss (minor) 1 | . . 1 Overload Shots . | . . . Overflow Damage 17 | . . 17 Projectiles 8 | . . 8 Explosions 9 | . . 9 Melee . | . . . Knockbacks 9 | . 1 8 Impact 1 | . 1 . Kinetic 8 | . . 8 Secondary . | . . . Self-Inflicted Damage . | . . . Shots . | . . . Rammed 2 | . 2 . Targets Rammed 2 | . 2 . Kicked . | . . . Crushed . | . . . Highest Temperature 63 | . 63 21 Average Temperature 16 | . 22 9 Received Heat Transfer 480 | . 174 306 Siege Activations . | . . . Robots Corrupted . | . . . Combat Hostiles . | . . . Parts Fried . | . . . Impact Corruptions . | . . . Robots Melted . | . . . Combat Hostiles . | . . . Parts Melted . | . . . Heat Transferred 74 | . 74 . Parts Sabotaged . | . . . Parts Stolen . | . . . Parts Stripped . | . . . Power Chain Reactions . | . . . Alert | -11 -10 -10 ------- Run | Yrd Mat Min Peak Influence 161 | . 161 98 Initial 9 | . . 9 Average 63 | . 60 70 Maximum Alert Level . | . . . Low Security (%) 100 | . 100 100 Level 1 . | . . . Level 2 . | . . . Level 3 . | . . . Level 4 . | . . . Level 5 . | . . . High Security . | . . . Max Security . | . . . Squads Dispatched 1 | . 1 . Investigation . | . . . Extermination . | . . . Reinforcement 1 | . 1 . Assault . | . . . Garrison . | . . . Intercept . | . . . Searches Triggered . | . . . Construction Impeded . | . . . Haulers Reinforced . | . . . Active Scanning Responses . | . . . Cargo Convoy Interrupts . | . . . Stealth | -11 -10 -10 --------- Run | Yrd Mat Min Distress Signals 2 | . 1 1 Communications Jammed . | . . . Distress Signals . | . . . Times Spotted 35 | . 17 18 Peak Tracking Total 5 | . 2 5 Tactical Retreats 2 | . 1 1 Traps | -11 -10 -10 ------- Run | Yrd Mat Min Traps Triggered 1 | . 1 . Indirectly . | . . . Trap Hack Attempts . | . . . Triggered . | . . . Disarmed . | . . . Reprogrammed . | . . . Reused . | . . . Traps Extracted . | . . . Installed . | . . . Triggered . | . . . Machines | -11 -10 -10 ---------- Run | Yrd Mat Min Machines Disabled 2 | . 1 1 Max in Single Turn 1 | . 1 1 Machines Repaired . | . . . Machines Dismantled . | . . . Machines Sabotaged . | . . . Overloaded Fab Kills . | . . . Hacking | -11 -10 -10 --------- Run | Yrd Mat Min Machines Accessed 4 | . 4 . Terminals 3 | . 3 . Fabricators . | . . . Repair Stations 1 | . 1 . Recycling Units . | . . . Scanalyzers . | . . . Garrison Access . | . . . Total Hacks 13 | . 13 . Successful 6 | . 6 . Failed 7 | . 7 . Catastrophic 1 | . 1 . Database Lockouts . | . . . Manual 7 | . 7 . Terminals 8 | . 8 . Fabricators . | . . . Repair Stations 5 | . 5 . Recycling Units . | . . . Scanalyzers . | . . . Garrison Access . | . . . Terminal Hacks 2 | . 2 . Terminal Index 1 | . 1 . Hauler Manifests 1 | . 1 . Fabricator Hacks . | . . . Repair Station Hacks 4 | . 4 . Scan Component 2 | . 2 . Repair 2 | . 2 . Recycling Unit Hacks . | . . . Scanalyzer . | . . . Garrison Access Hacks . | . . . Unauthorized Hacks . | . . . Terminals . | . . . Fabricators . | . . . Repair Stations . | . . . Recycling Units . | . . . Scanalyzers . | . . . Garrison Access . | . . . Data Cores Recovered . | . . . Used . | . . . Hacking Detections 4 | . 4 . Full Trace Events . | . . . Feedback Events . | . . . Feedback Blocked . | . . . Robot Schematics Acquired . | . . . Robots Built . | . . . Authchips . | . . . Time . | . . . Total Robot Build Rating . | . . . Part Schematics Acquired . | . . . Parts Built . | . . . Authchips . | . . . Time . | . . . Total Part Build Rating . | . . . Parts Repaired 2 | . 2 . Time 52 | . 52 . Parts Recycled . | . . . Recycled Matter . | . . . Retrieved Matter . | . . . Retrieved Components . | . . . Parts Scanalyzed . | . . . Part Schematics Acquired . | . . . Parts Damaged . | . . . Bothacking | -11 -10 -10 ------------ Run | Yrd Mat Min Used RIF Installer . | . . . Robots Hacked . | . . . Non-combat . | . . . Combat . | . . . Robot Hacks Applied . | . . . Relay Couplers Released . | . . . Fabnet Peak Effective % . | . . . Robots Rewired . | . . . Allies Hacked . | . . . Hacks Repelled . | . . . Allies | -11 -10 -10 -------- Run | Yrd Mat Min Total Allies . | . . . Largest Group . | . . . Highest-Rated Group . | . . . Highest-Rated Ally . | . . . Total Orders . | . . . Ally Attacks . | . . . Total Damage . | . . . Kills . | . . . Allies Corrupted . | . . . Allies Melted . | . . . Intel | -11 -10 -10 ------- Run | Yrd Mat Min Robot Analysis Total . | . . . Derelict Logs Recovered . | . . . Drone Launches . | . . . Drone Recoveries . | . . . Exploration | -11 -10 -10 ------------- Run | Yrd Mat Min Turns Passed 1134 | . 747 387 Spaces Moved 477 | 1 314 162 Core . | . . . Treads 454 | . 292 162 Legs 23 | 1 22 . Wheels . | . . . Hover . | . . . Flight . | . . . Fastest Speed 120 | 120 120 160 Average Speed 159 | 120 158 160 Slowest Speed 240 | 120 190 240 Overloaded Moves . | . . . Propulsion Burnouts . | . . . Robots Hopped . | . . . Cave-ins Triggered . | . . . Exploration Rate (%) 34 | 2 52 50 Regions Visited 2 Branch Regions 1 Pre-discovered Areas . | . . . Known Exits Taken . | . . . Unknown Exits Taken 2 | 1 1 . Scrap Searched 1 | . . 1 Spaces Dug . | . . . Terrain Destroyed 19 | . . 19 Melee . | . . . Projectile . | . . . AOE 19 | . . 19 Terrain Rammed . | . . . Walls Destroyed . | . . . Machines Disabled . | . . . Actions | -11 -10 -10 --------- Run | Yrd Mat Min Total 678 | . 456 222 Wait 72 | . 68 4 Move 475 | . 313 162 Hop . | . . . Pick Up 17 | . 10 7 Fast Attach 3 | . 3 . Attach 7 | . 1 6 Detach . | . . . Swap 10 | . 5 5 Drop 5 | . 3 2 Fire 87 | . 51 36 Melee . | . . . Ram . | . . . Kick . | . . . Crush 2 | . 2 . Escape Stasis . | . . . Rewire . | . . . Trap . | . . . Miscellaneous . | . . . Route ------- -11/Scrapyard -10/Materials (discovered 2 exits: [*Mat] / [*Min]) -10/Mines History --------- Turn | Location | Event 1 | -11/Scrapyard | Discovered new exit (range 0) 1 | -11/Scrapyard | Entered Materials 226 | -10/Materials | Repaired Lgt. Treads 253 | -10/Materials | Repaired Lgt. Treads 303 | -10/Materials | Build established: Mutant 677 | -10/Materials | Discovered new exit (range 10) 741 | -10/Materials | Discovered new exit (range 5) 748 | -10/Materials | Entered Mines 749 | -10/Mines | Assembled infested the area 800 | -10/Mines | Core integrity fell below 50% 849 | -10/Mines | Lost 6 parts (1p2n3w) 950 | -10/Mines | Core integrity fell below 20% 1135 | -10/Mines | Destroyed by G-47 Trooper with Particle Gun Last Messages --------------- 00920_ as-03535 destroyed. 00925_ Acquired 5 matter. 00946_ Destroyed Asb. Hover Unit. 00946_ as-19599 destroyed. 00948_ as-28674 destroyed. 00950_ as-60682 destroyed. 00950_ Destroyed Asb. Hover Unit. 00955_ as-44466 destroyed. 00958_ Destroyed Asb. F-torch. 00964_ Acquired 1 matter. 00969_ Acquired 4 matter. 00977_ Acquired 47 matter. 00994_ Acquired 16 matter. 01010_ System corrupted: Component data lost. 01108_ G-47 Trooper knocked back. 01108_ Seismic Survey Station disabled. 01114_ G-34 Mercenary knocked back. 01117_ G-47 Trooper knocked back. 01125_ Critical hit (Burn: +37). 01127_ Lgt. Treads destroyed. Map ----- +----------------------------------------------------+ | | | | | | | | | | | | | | | | | | | | | | | | | | | | | | | | | | | ?????????????????????????????????????????????????? | | ?????????????????????????????????????????????????? | | ?????#####???????????????????????????????????????? | | ?????# ######??????????????????????????????????? | | ###### ## ##?????????????????????????????????? | | #?????????????????????????????????? | | #?????????????????????????????????? | | ######## #??########### """ "?????????????? | | ???????# ##??# @ g "" "?????????????? | | ???????# ##???# ######### g #?????????? | | ??????## ##???# #?????????????? #?????????? | | #????## ##??# #????????????????????????????? | | ##??## ##?# #????????????????????????????? | | ##?# ### ###??????????????????????????? | | ### #??????????????????????????? | | ### #??????????????????????????? | | ##?? ????????????????????????? | | ### ####??? %* ?????????????????????? | | ##?# ##?????? ???????????????????? | | ##??# # #??????? ? ?????????????????? | | ????# ## #???????# ?? ?????????????????? | | ????# ## =#????????# ???????????????????? | | ????######* #???????# # ??????????????????? | | ?????????# #?????## # ??????????????????? | | ?????????# ##???? !# ???????????????????? | | ?????????# ###?? ##????????????????????? | | ????????## ### #?????????????????????? | | ##?????## # #?????????????????????? | | = %%!%## = %= ?????????????????????? | | %!!*% ! = * # #?????????????????????????? | | ##|!! ## ! ##???????????????????????????? | | ?#* #?# #???????????????????????????? | | ?## #??# #???????????????????????????? | +----------------------------------------------------+ Best States ------------- Heat Dissipation 25 Energy Generation 10 Energy Capacity 125 Matter Stores 300 Matter Capacity 300 Sight Range 16 Terrain Scan Density 10 Evasion (%) 55 Recoil Reduction 2 Item Schematics ----------------- None Robot Schematics ------------------ None Fabricated ------------ Nothing Alien Tech Used ----------------- None Achievements -------------- None Challenges ------------ None Game ------ Seed CannonScanClaw Manual? 0 Play Time 00:08:40 Cumulative 881.5 hours Start 2024.03.23 @ 16:54:51 End 2024.03.23 @ 17:01:01 Sessions 1 Manual Loads 0 Difficulty Rogue Special Mode None Game No. 1354 Rogue 1354 Adventurer 0 Explorer 0 Win Type - Total 85 Types 51/1/14/14/4/0/0/1/0 Lore% 90 Gallery% 92 Achievement% 85 Wizard Run 0 Options --------- Layout 0 ASCII 1 Keyboard 0 Movement Numpad Keybinds 0 Fullscreen 2 Font 18/SmallcapsGlow Map View 76x50 Zoom Use 0% Tactical HUD 1 Map Filters NONE Filters NONE Steam 1 RUN: e2b0115c-e52b-4cf0-aa1a-049b42120883